fUSD/lending_fUSD_20250505
["ID","MTS","AMOUNT","RATE_DAILY","PERIOD"]
[359996427,1746471037567,-969.17279306,0.00019999,2]
[359996428,1746471037577,-691.52720694,0.00019999,2]
[359996429,1746471037621,-1353.09279306,0.00019999,2]
[359996430,1746471037631,-2044.62,0.00019999,2]
[359996431,1746471037641,-450.0,0.00019999,2]
[359996432,1746471037650,-2044.62,0.00019999,2]
[359996433,1746471037659,-530.53,0.00019999,2]
[359996434,1746471037670,-1751.7774319,0.00019999,2]
[359996435,1746471037726,-292.8425681,0.00019999,2]
[359996436,1746471037736,-2044.62,0.00019999,2]
[359996437,1746471037745,-2044.62,0.00019999,2]
[359996438,1746471037754,-2044.62,0.00019999,2]
[359996439,1746471037764,-2044.62,0.00019999,2]
[359996440,1746471037773,-2044.62,0.00019999,2]
[359996441,1746471037782,-2044.62,0.00019999,2]
[359996442,1746471037791,-450.0,0.00019999,2]
[359996443,1746471037801,-2044.76,0.00019999,2]
[359996444,1746471037810,-450.0,0.00019999,2]
[359996445,1746471037821,-450.0,0.00019999,2]
[359996446,1746471037831,-450.0,0.00019999,2]
[359996447,1746471037840,-352.61,0.00019999,2]
[359996448,1746471037849,-450.0,0.00019999,2]
[359996449,1746471037859,-308.09,0.00019999,2]
[359996450,1746471037869,-450.0,0.00019999,2]
[359996451,1746471037878,-574.02,0.00019999,2]
[359996452,1746471037888,-450.0,0.00019999,2]
[359996453,1746471037897,-450.0,0.00019999,2]
[359996454,1746471037906,-450.0,0.00019999,2]
[359996455,1746471037916,-450.0,0.00019999,2]
[359996456,1746471037925,-450.0,0.00019999,2]
[359996457,1746471037935,-450.0,0.00019999,2]
[359996458,1746471037944,-450.0,0.00019999,2]
[359996459,1746471037954,-450.0,0.00019999,2]
[359996460,1746471037963,-333.53539399,0.00019999,2]
[359996462,1746471037972,-450.0,0.00019999,2]
[359996464,1746471037981,-450.0,0.00019999,2]
[359996466,1746471037991,-450.0,0.00019999,2]
[359996468,1746471038004,-175.98200404,0.00019999,2]
[359996469,1746471038014,-261.23,0.00019999,2]
[359996471,1746471038023,-450.0,0.00019999,2]
[359996473,1746471038032,-450.0,0.00019999,2]
[359996475,1746471038042,-450.0,0.00019999,2]
[359996477,1746471038052,-450.0,0.00019999,2]
[359996479,1746471038061,-450.0,0.00019999,2]
[359996481,1746471038072,-450.0,0.00019999,2]
[359996483,1746471038082,-394.49,0.00019999,2]
[359996485,1746471038090,-450.0,0.00019999,2]
[359996487,1746471038099,-450.0,0.00019999,2]
[359996489,1746471038108,-450.0,0.00019999,2]
[359996491,1746471038117,-533.51,0.00019999,2]
[359996493,1746471038127,-450.0,0.00019999,2]
[359996495,1746471038137,-450.0,0.00019999,2]
[359996497,1746471038146,-450.0,0.00019999,2]
[359996499,1746471038155,-450.0,0.00019999,2]
[359996501,1746471038166,-450.0,0.00019999,2]
[359996502,1746471038176,-450.0,0.00019999,2]
[359996504,1746471038185,-450.0,0.00019999,2]
[359996506,1746471038195,-318.2,0.00019999,2]
[359996508,1746471038204,-450.0,0.00019999,2]
[359996510,1746471038213,-450.0,0.00019999,2]
[359996512,1746471038222,-233.23,0.00019999,2]
[359996514,1746471038231,-405.47,0.00019999,2]
[359996516,1746471038240,-428.9,0.00019999,2]
[359996518,1746471038249,-481.25,0.00019999,2]
[359996520,1746471038258,-450.0,0.00019999,2]
[359996522,1746471038267,-450.0,0.00019999,2]
[359996524,1746471038277,-450.0,0.00019999,2]
[359996526,1746471038286,-450.0,0.00019999,2]
[359996528,1746471038295,-450.0,0.00019999,2]
[359996530,1746471038304,-450.0,0.00019999,2]
[359996532,1746471038314,-450.0,0.00019999,2]
[359996534,1746471038323,-450.0,0.00019999,2]
[359996535,1746471038332,-450.0,0.00019999,2]
[359996537,1746471038340,-572.71,0.00019999,2]
[359996539,1746471038350,-450.0,0.00019999,2]
[359996541,1746471038359,-450.0,0.00019999,2]
[359996543,1746471038368,-450.0,0.00019999,2]
[359996545,1746471038378,-450.0,0.00019999,2]
[359996547,1746471038387,-450.0,0.00019999,2]
[359996549,1746471038396,-450.0,0.00019999,2]
[359996551,1746471038405,-450.0,0.00019999,2]
[359996553,1746471038414,-450.0,0.00019999,2]
[359996555,1746471038423,-450.0,0.00019999,2]
[359996557,1746471038433,-450.0,0.00019999,2]
[359996559,1746471038442,-450.0,0.00019999,2]
[359996561,1746471038451,-450.0,0.00019999,2]
[359996563,1746471038460,-450.0,0.00019999,2]
[359996565,1746471038469,-450.0,0.00019999,2]
[359996567,1746471038478,-450.0,0.00019999,2]
[359996569,1746471038487,-450.0,0.00019999,2]
[359996571,1746471038496,-450.0,0.00019999,2]
[359996572,1746471038505,-450.0,0.00019999,2]
[359996574,1746471038515,-595.20741613,0.00019999,2]
[359996576,1746471038524,-450.0,0.00019999,2]
[359996578,1746471038532,-450.0,0.00019999,2]
[359996580,1746471038541,-450.0,0.00019999,2]
[359996582,1746471038550,-450.0,0.00019999,2]
[359996584,1746471038559,-450.0,0.00019999,2]
[359996586,1746471038569,-450.0,0.00019999,2]
[359996588,1746471038579,-450.0,0.00019999,2]
[359996590,1746471038588,-157.86,0.00019999,2]
[359996592,1746471038597,-450.0,0.00019999,2]
[359996594,1746471038606,-450.0,0.00019999,2]
[359996596,1746471038615,-450.0,0.00019999,2]
[359996597,1746471038624,-544.95999999,0.00019999,2]
[359996599,1746471038633,-450.0,0.00019999,2]
[359996601,1746471038642,-450.0,0.00019999,2]
[359996603,1746471038651,-450.0,0.00019999,2]
[359996605,1746471038661,-450.0,0.00019999,2]
[359996607,1746471038670,-538.81,0.00019999,2]
[359996609,1746471038679,-450.0,0.00019999,2]
[359996611,1746471038688,-450.0,0.00019999,2]
[359996613,1746471038697,-167.62,0.00019999,2]
[359996615,1746471038706,-450.0,0.00019999,2]
[359996617,1746471038715,-500.0,0.00019999,2]
[359996619,1746471038724,-322.60402065,0.00019999,2]
[359996621,1746471038733,-526.0,0.0002,2]
[359996623,1746471038742,-402530.10216203,0.0002,2]
[359996625,1746471038755,-457.02818783,0.0002,2]
[359996736,1746471039765,-285.84313877,0.0002,2]
[359996738,1746471039776,-308585.6262774,0.0002,2]
[359996770,1746471040083,-76044.23222949,0.0002,2]
[359996787,1746471040242,-18978.6,0.0002,2]
[359997014,1746471042954,-450.0,0.00019998,2]
[359997015,1746471042963,-450.0,0.00019999,2]
[359997016,1746471042972,-450.0,0.00019999,2]
[359997017,1746471042981,-450.0,0.00019999,2]
[359997018,1746471042990,-450.0,0.00019999,2]
[359997019,1746471043002,-10376.78433601,0.0002,2]
[359997020,1746471043064,-851.22372094,0.0002,2]
[359997097,1746471093945,-5000.0,0.0002,14]
[359997098,1746471096087,-5000.0,0.0002,14]
[359997099,1746471098097,-5000.0,0.0002,14]
[359997121,1746471240059,212.54,0.00019029,2]
[359997122,1746471397206,-2000.0,0.0002,14]
[359997123,1746471410350,-1545.0,0.0002,14]
[359997124,1746471423250,-550.0,0.0002,14]
[359997125,1746471425903,-555.0,0.0002,14]
[359997126,1746471436306,-250.0,0.0002,14]
[359997127,1746471438081,-250.0,0.0002,14]
[359997128,1746471439077,-250.0,0.0002,14]
[359997129,1746471439885,-250.0,0.0002,14]
[359997130,1746471441183,-250.0,0.0002,14]
[359997131,1746471445705,-200.0,0.0002,14]
[359997132,1746471447776,250.0,0.00017,2]
[359997133,1746471448855,243.21555946,0.00019,2]
[359997134,1746471448877,56.78444054,0.00019,2]
[359997135,1746471465827,166.63,0.00019493,2]
[359997136,1746471501884,880.27052817,0.000301,120]
[359997137,1746471610205,750.47,0.00017023,2]
[359997138,1746471610456,750.47,0.00019287,2]
[359997139,1746471820538,198.0,0.0003,120]
[359997140,1746471833201,156.26,0.00018941,2]
[359997149,1746472082765,250.0,0.00018906,2]
[359997168,1746472165603,1000.0,0.00018919,2]
[359997182,1746472203417,-207.4,0.00019688,2]
[359997183,1746472203441,-200.0,0.00019694,2]
[359997184,1746472203465,-300.0,0.00019699,2]
[359997185,1746472203487,-1200.0,0.00019699,2]
[359997186,1746472203508,-300.0,0.00019699,2]
[359997187,1746472203530,-7342.01,0.000197,2]
[359997188,1746472203552,-500.0,0.000197,2]
[359997189,1746472203573,-200.0,0.000197,2]
[359997190,1746472203597,-150.0,0.00019729,2]
[359997191,1746472203618,-799.25930071,0.00019779,2]
[359997192,1746472203640,-2300.0011009,0.00019799,2]
[359997193,1746472203661,-500.0,0.0001984,2]
[359997194,1746472203682,-2000.0,0.0001984,2]
[359997195,1746472203704,-500.0,0.0001984,2]
[359997196,1746472203729,-200.0,0.0001984,2]
[359997197,1746472203753,-501.02155493,0.00019873,2]
[359997198,1746472203774,-500.0,0.00019873,2]
[359997199,1746472203798,-500.0,0.00019873,2]
[359997200,1746472203818,-500.0,0.00019873,2]
[359997201,1746472203844,-500.0,0.00019873,2]
[359997202,1746472203866,-400.96451374,0.00019873,2]
[359997203,1746472203890,-153.83759603,0.00019873,2]
[359997204,1746472203910,-264.48753288,0.00019873,2]
[359997205,1746472203930,-500.0,0.00019873,2]
[359997206,1746472203951,-302.473,0.00019876,2]
[359997207,1746472203972,-5931.0,0.00019876,2]
[359997208,1746472203994,-8563.88581293,0.00019897,2]
[359997209,1746472204021,-8563.88581289,0.00019897,2]
[359997210,1746472204044,-218.77377499,0.00019898,2]
[359997212,1746472231638,-200.0,0.00019691,2]
[359997213,1746472231647,-1405.37230001,0.00019799,2]
[359997214,1746472231850,-429.81486491,0.00019799,2]
[359997217,1746472237937,-4.81371578,0.00019799,2]
[359997218,1746472237948,-500.0,0.00019873,2]
[359997219,1746472237958,-500.0,0.00019873,2]
[359997220,1746472237967,-500.0,0.00019873,2]
[359997221,1746472237978,-500.0,0.00019873,2]
[359997222,1746472237988,-1605.3723,0.00019886,2]
[359997223,1746472237998,-8345.1120379,0.00019898,2]
[359997224,1746472238008,-8563.88581289,0.00019898,2]
[359997225,1746472238018,-500.0,0.00019898,2]
[359997226,1746472238027,-500.0,0.00019898,2]
[359997227,1746472238038,-500.0,0.00019898,2]
[359997228,1746472238047,-500.0,0.00019898,2]
[359997229,1746472238057,-500.0,0.00019898,2]
[359997230,1746472238067,-289.58062465,0.00019898,2]
[359997231,1746472238076,-500.0,0.00019898,2]
[359997232,1746472238086,-500.0,0.00019898,2]
[359997233,1746472238096,-500.0,0.00019898,2]
[359997234,1746472238105,-500.0,0.00019898,2]
[359997235,1746472238115,-500.0,0.00019898,2]
[359997236,1746472238125,-500.0,0.00019898,2]
[359997237,1746472238134,-500.0,0.00019898,2]
[359997238,1746472238145,-500.0,0.00019898,2]
[359997240,1746472238154,-500.0,0.00019898,2]
[359997242,1746472238164,-500.0,0.00019898,2]
[359997245,1746472238174,-500.0,0.00019898,2]
[359997247,1746472238183,-500.0,0.00019898,2]
[359997249,1746472238192,-500.0,0.00019898,2]
[359997251,1746472238202,-500.0,0.00019898,2]
[359997253,1746472238211,-500.0,0.00019898,2]
[359997255,1746472238220,-500.0,0.00019898,2]
[359997257,1746472238229,-500.0,0.00019898,2]
[359997259,1746472238240,-500.0,0.00019898,2]
[359997261,1746472238250,-500.0,0.00019898,2]
[359997263,1746472238260,-500.0,0.00019898,2]
[359997265,1746472238269,-500.0,0.00019898,2]
[359997267,1746472238279,-500.0,0.00019898,2]
[359997269,1746472238288,-500.0,0.00019898,2]
[359997271,1746472238298,-500.0,0.00019898,2]
[359997273,1746472238307,-500.0,0.00019898,2]
[359997276,1746472238316,-500.0,0.00019898,2]
[359997278,1746472238325,-500.0,0.00019898,2]
[359997280,1746472238335,-500.0,0.00019898,2]
[359997282,1746472238345,-500.0,0.00019898,2]
[359997284,1746472238355,-500.0,0.00019898,2]
[359997286,1746472238364,-500.0,0.00019898,2]
[359997288,1746472238375,-295.54523073,0.00019898,2]
[359997290,1746472238385,-500.0,0.00019898,2]
[359997292,1746472238395,-500.0,0.00019898,2]
[359997294,1746472238406,-500.0,0.00019898,2]
[359997296,1746472238417,-500.0,0.00019898,2]
[359997298,1746472238427,-500.0,0.00019898,2]
[359997300,1746472238438,-500.0,0.00019898,2]
[359997302,1746472238448,-500.0,0.00019898,2]
[359997304,1746472238459,-500.0,0.00019898,2]
[359997305,1746472238469,-500.0,0.00019898,2]
[359997307,1746472238479,-500.0,0.00019898,2]
[359997310,1746472238490,-500.0,0.00019898,2]
[359997312,1746472238501,-500.0,0.00019898,2]
[359997314,1746472238511,-500.0,0.00019898,2]
[359997316,1746472238521,-500.0,0.00019898,2]
[359997318,1746472238530,-500.0,0.00019898,2]
[359997320,1746472238540,-500.0,0.00019898,2]
[359997321,1746472238550,-500.0,0.00019898,2]
[359997324,1746472238559,-500.0,0.00019898,2]
[359997326,1746472238569,-500.0,0.00019898,2]
[359997327,1746472238578,-500.0,0.00019898,2]
[359997329,1746472238587,-500.0,0.00019898,2]
[359997331,1746472238596,-450.0,0.00019898,2]
[359997333,1746472238605,-500.0,0.00019898,2]
[359997335,1746472238615,-500.0,0.00019898,2]
[359997337,1746472238624,-500.0,0.00019898,2]
[359997339,1746472238634,-500.0,0.00019898,2]
[359997341,1746472238643,-500.0,0.00019898,2]
[359997343,1746472238652,-500.0,0.00019898,2]
[359997345,1746472238661,-500.0,0.00019898,2]
[359997347,1746472238670,-500.0,0.00019898,2]
[359997349,1746472238680,-500.0,0.00019898,2]
[359997351,1746472238689,-500.0,0.00019898,2]
[359997353,1746472238698,-500.0,0.00019898,2]
[359997355,1746472238707,-500.0,0.00019898,2]
[359997357,1746472238721,-350.0,0.00019898,2]
[359997359,1746472238730,-3000.5769936,0.00019898,2]
[359997361,1746472238740,-3000.57699358,0.00019898,2]
[359997363,1746472238749,-8563.88581289,0.00019898,2]
[359997364,1746472238759,-3000.57699358,0.00019898,2]
[359997366,1746472238768,-8563.88581289,0.00019899,2]
[359997368,1746472238777,-3000.57699358,0.00019899,2]
[359997370,1746472238787,-8563.88581289,0.00019899,2]
[359997372,1746472238798,-180.32422467,0.00019899,2]
[359997374,1746472238808,-180.32422459,0.00019899,2]
[359997377,1746472238818,-180.32422459,0.00019899,2]
[359997378,1746472238828,-8563.88581289,0.00019899,2]
[359997380,1746472238838,-180.32422459,0.00019899,2]
[359997382,1746472238847,-180.32422459,0.00019899,2]
[359997384,1746472238857,-180.32422459,0.000199,2]
[359997386,1746472238866,-8563.88581289,0.000199,2]
[359997388,1746472238876,-180.32422459,0.000199,2]
[359997390,1746472238885,-180.32422459,0.000199,2]
[359997392,1746472238894,-180.32422459,0.000199,2]
[359997394,1746472238904,-158.08935037,0.000199,2]
[359997396,1746472238913,-2479.93339873,0.000199,2]
[359997398,1746472238922,-8563.88581289,0.000199,2]
[359997400,1746472238931,-1451.86671909,0.000199,2]
[359997402,1746472238941,-180.32422459,0.000199,2]
[359997404,1746472238950,-5931.0,0.00019937,2]
[359997406,1746472238959,-500.0,0.00019973,2]
[359997408,1746472238969,-500.0,0.00019973,2]
[359997410,1746472238983,-500.0,0.00019973,2]
[359997412,1746472238992,-532.53283148,0.00019973,2]
[359997414,1746472239001,-500.0,0.00019973,2]
[359997417,1746472239012,-500.0,0.00019973,2]
[359997418,1746472239021,-500.0,0.00019973,2]
[359997421,1746472239031,-500.0,0.00019973,2]
[359997422,1746472239041,-501.3112528,0.00019973,2]
[359997425,1746472239051,-509.4030353,0.00019973,2]
[359997426,1746472239060,-500.0,0.00019973,2]
[359997428,1746472239069,-500.0,0.00019973,2]
[359997430,1746472239079,-152.69879397,0.00019973,2]
[359997431,1746472239088,-500.64631312,0.00019973,2]
[359997433,1746472239097,-500.0,0.00019973,2]
[359997435,1746472239106,-500.0,0.00019973,2]
[359997437,1746472239115,-209.60510291,0.00019973,2]
[359997439,1746472239125,-475.07202567,0.00019973,2]
[359997441,1746472239134,-500.0,0.00019973,2]
[359997443,1746472239143,-500.0,0.00019973,2]
[359997445,1746472239153,-500.0,0.00019973,2]
[359997447,1746472239161,-500.0,0.00019973,2]
[359997449,1746472239171,-500.0,0.00019973,2]
[359997451,1746472239179,-500.0,0.00019973,2]
[359997453,1746472239189,-517.26161729,0.00019973,2]
[359997455,1746472239197,-500.0,0.00019973,2]
[359997456,1746472239207,-185.33387453,0.00019986,2]
[359997458,1746472239216,-3192.6481265,0.00019986,2]
[359997460,1746472239227,-1761.1240811,0.00019986,2]
[359997462,1746472239236,-20139.5121545,0.00019986,2]
[359997464,1746472239245,-978.0173343,0.00019986,2]
[359997466,1746472239255,-4033.9,0.00019987,2]
[359997468,1746472239264,-1221.138,0.00019989,2]
[359997470,1746472239273,-406.4683215,0.0001999,2]
[359997472,1746472239283,-406.4683215,0.0001999,2]
[359997474,1746472239292,-406.4683215,0.0001999,2]
[359997476,1746472239301,-150.0,0.00019994,2]
[359997478,1746472239311,-450.0,0.00019996,2]
[359997480,1746472239320,-497.0,0.00019996,2]
[359997482,1746472239329,-515.7572433,0.00019996,2]
[359997484,1746472239338,-450.0,0.00019996,2]
[359997486,1746472239347,-503.13320766,0.00019996,2]
[359997488,1746472239356,-500.0,0.00019996,2]
[359997490,1746472239365,-196.29970361,0.00019996,2]
[359997491,1746472239375,-450.0,0.00019996,2]
[359997494,1746472239385,-450.0,0.00019996,2]
[359997496,1746472239395,-565.99,0.00019996,2]
[359997497,1746472239404,-450.0,0.00019996,2]
[359997499,1746472239414,-586.08767055,0.00019996,2]
[359997501,1746472239423,-494.56,0.00019996,2]
[359997503,1746472239432,-450.0,0.00019996,2]
[359997505,1746472239441,-450.0,0.00019996,2]
[359997507,1746472239450,-450.0,0.00019996,2]
[359997509,1746472239460,-450.0,0.00019996,2]
[359997511,1746472239469,-450.0,0.00019996,2]
[359997513,1746472239480,-450.0,0.00019996,2]
[359997515,1746472239490,-458.35,0.00019996,2]
[359997517,1746472239502,-450.0,0.00019996,2]
[359997519,1746472239512,-450.0,0.00019996,2]
[359997521,1746472239522,-450.0,0.00019996,2]
[359997523,1746472239531,-500.0,0.00019996,2]
[359997525,1746472239541,-450.56745622,0.00019996,2]
[359997527,1746472239550,-438.32,0.00019996,2]
[359997529,1746472239560,-450.0,0.00019996,2]
[359997531,1746472239569,-450.0,0.00019996,2]
[359997533,1746472239579,-450.0,0.00019996,2]
[359997535,1746472239588,-450.0,0.00019996,2]
[359997537,1746472239598,-450.0,0.00019996,2]
[359997539,1746472239607,-450.0,0.00019996,2]
[359997541,1746472239616,-450.0,0.00019996,2]
[359997543,1746472239626,-450.0,0.00019996,2]
[359997545,1746472239637,-452.09724191,0.00019996,2]
[359997547,1746472239646,-450.0,0.00019996,2]
[359997549,1746472239655,-450.0,0.00019996,2]
[359997551,1746472239665,-450.0,0.00019996,2]
[359997553,1746472239674,-450.0,0.00019996,2]
[359997555,1746472239684,-450.0,0.00019996,2]
[359997557,1746472239694,-450.0,0.00019996,2]
[359997559,1746472239703,-450.0,0.00019997,2]
[359997561,1746472239713,-450.0,0.00019997,2]
[359997563,1746472239727,-450.0,0.00019997,2]
[359997565,1746472239735,-450.0,0.00019997,2]
[359997567,1746472239744,-450.0,0.00019997,2]
[359997569,1746472239754,-450.0,0.00019997,2]
[359997571,1746472239763,-370.77015414,0.00019997,2]
[359997573,1746472239773,-450.0,0.00019997,2]
[359997575,1746472239782,-450.0,0.00019997,2]
[359997576,1746472239792,-450.0,0.00019997,2]
[359997578,1746472239802,-450.0,0.00019997,2]
[359997580,1746472239811,-450.0,0.00019997,2]
[359997582,1746472239820,-450.0,0.00019997,2]
[359997584,1746472239830,-450.0,0.00019997,2]
[359997586,1746472239839,-450.0,0.00019997,2]
[359997588,1746472239848,-450.0,0.00019997,2]
[359997590,1746472239857,-450.0,0.00019997,2]
[359997592,1746472239867,-450.0,0.00019997,2]
[359997594,1746472239876,-450.0,0.00019997,2]
[359997596,1746472239886,-450.0,0.00019997,2]
[359997598,1746472240052,-450.0,0.00019997,2]
[359997599,1746472240066,-450.0,0.00019997,2]
[359997600,1746472240075,-450.0,0.00019997,2]
[359997601,1746472240084,-184.63802733,0.00019997,2]
[359997602,1746472240093,-450.0,0.00019997,2]
[359997603,1746472240102,-450.0,0.00019997,2]
[359997604,1746472240112,-450.0,0.00019997,2]
[359997605,1746472240122,-450.0,0.00019997,2]
[359997607,1746472240131,-450.0,0.00019997,2]
[359997609,1746472240141,-450.0,0.00019997,2]
[359997611,1746472240150,-450.0,0.00019997,2]
[359997613,1746472240159,-450.0,0.00019997,2]
[359997614,1746472240167,-450.0,0.00019997,2]
[359997616,1746472240177,-450.0,0.00019997,2]
[359997618,1746472240186,-450.0,0.00019997,2]
[359997620,1746472240196,-450.0,0.00019997,2]
[359997622,1746472240206,-450.0,0.00019997,2]
[359997624,1746472240215,-450.0,0.00019997,2]
[359997626,1746472240225,-450.0,0.00019997,2]
[359997628,1746472240235,-370.5392224,0.00019997,2]
[359997630,1746472240245,-450.0,0.00019997,2]
[359997632,1746472240254,-450.0,0.00019997,2]
[359997634,1746472240264,-450.0,0.00019997,2]
[359997636,1746472240273,-450.0,0.00019997,2]
[359997638,1746472240283,-450.0,0.00019997,2]
[359997640,1746472240291,-450.0,0.00019997,2]
[359997642,1746472240301,-450.0,0.00019997,2]
[359997644,1746472240311,-450.0,0.00019997,2]
[359997646,1746472240321,-450.0,0.00019997,2]
[359997648,1746472240331,-450.0,0.00019997,2]
[359997650,1746472240341,-450.0,0.00019997,2]
[359997652,1746472240350,-450.0,0.00019997,2]
[359997654,1746472240359,-450.0,0.00019997,2]
[359997656,1746472240369,-450.0,0.00019997,2]
[359997658,1746472240379,-450.0,0.00019997,2]
[359997660,1746472240388,-450.0,0.00019997,2]
[359997662,1746472240398,-450.0,0.00019997,2]
[359997664,1746472240407,-450.0,0.00019997,2]
[359997666,1746472240417,-450.0,0.00019997,2]
[359997668,1746472240426,-450.0,0.00019997,2]
[359997670,1746472240435,-450.0,0.00019997,2]
[359997672,1746472240444,-450.0,0.00019997,2]
[359997674,1746472240454,-450.0,0.00019997,2]
[359997676,1746472240464,-450.0,0.00019997,2]
[359997678,1746472240474,-450.0,0.00019997,2]
[359997680,1746472240483,-450.0,0.00019997,2]
[359997682,1746472240493,-450.0,0.00019997,2]
[359997684,1746472240502,-450.0,0.00019997,2]
[359997686,1746472240511,-506.82,0.00019997,2]
[359997688,1746472240521,-450.0,0.00019997,2]
[359997690,1746472240530,-450.0,0.00019997,2]
[359997692,1746472240539,-450.0,0.00019997,2]
[359997694,1746472240548,-450.0,0.00019997,2]
[359997696,1746472240557,-450.0,0.00019997,2]
[359997698,1746472240566,-450.0,0.00019997,2]
[359997700,1746472240575,-450.0,0.00019997,2]
[359997702,1746472240584,-393.19971781,0.00019997,2]
[359997704,1746472240593,-450.0,0.00019997,2]
[359997706,1746472240602,-450.0,0.00019997,2]
[359997708,1746472240611,-450.0,0.00019997,2]
[359997710,1746472240619,-450.0,0.00019997,2]
[359997712,1746472240628,-450.0,0.00019997,2]
[359997714,1746472240637,-450.0,0.00019997,2]
[359997716,1746472240646,-450.0,0.00019997,2]
[359997718,1746472240658,-450.0,0.00019997,2]
[359997720,1746472240668,-500.0,0.00019997,2]
[359997722,1746472240677,-450.0,0.00019997,2]
[359997724,1746472240686,-450.0,0.00019997,2]
[359997726,1746472240695,-450.0,0.00019997,2]
[359997728,1746472240704,-450.0,0.00019997,2]
[359997730,1746472240713,-450.0,0.00019997,2]
[359997732,1746472240722,-450.0,0.00019997,2]
[359997734,1746472240735,-450.0,0.00019997,2]
[359997736,1746472240744,-450.0,0.00019997,2]
[359997738,1746472240753,-450.0,0.00019997,2]
[359997740,1746472240766,-450.0,0.00019997,2]
[359997742,1746472240777,-450.0,0.00019997,2]
[359997744,1746472240787,-450.0,0.00019997,2]
[359997746,1746472240796,-450.0,0.00019997,2]
[359997748,1746472240806,-544.82,0.00019997,2]
[359997750,1746472240815,-566.26,0.00019997,2]
[359997752,1746472240825,-450.0,0.00019997,2]
[359997754,1746472240834,-450.0,0.00019997,2]
[359997756,1746472240843,-3381.27,0.00019997,2]
[359997758,1746472240853,-450.0,0.00019997,2]
[359997760,1746472240862,-450.0,0.00019997,2]
[359997762,1746472240871,-450.0,0.00019997,2]
[359997764,1746472240881,-450.0,0.00019997,2]
[359997766,1746472240890,-395.39490778,0.00019997,2]
[359997768,1746472240899,-450.0,0.00019997,2]
[359997770,1746472240908,-448.12202068,0.00019997,2]
[359997772,1746472240918,-450.0,0.00019997,2]
[359997774,1746472240927,-450.0,0.00019997,2]
[359997776,1746472240936,-450.0,0.00019997,2]
[359997778,1746472240946,-450.0,0.00019997,2]
[359997780,1746472240955,-450.0,0.00019997,2]
[359997782,1746472240964,-450.0,0.00019997,2]
[359997784,1746472240974,-450.0,0.00019997,2]
[359997786,1746472240983,-450.0,0.00019997,2]
[359997788,1746472240993,-450.0,0.00019997,2]
[359997790,1746472241002,-450.0,0.00019997,2]
[359997792,1746472241011,-450.0,0.00019997,2]
[359997794,1746472241019,-450.0,0.00019997,2]
[359997796,1746472241028,-450.0,0.00019997,2]
[359997798,1746472241039,-497.80282091,0.00019997,2]
[359997800,1746472241048,-450.0,0.00019997,2]
[359997802,1746472241058,-450.0,0.00019997,2]
[359997804,1746472241067,-450.0,0.00019997,2]
[359997806,1746472241076,-450.0,0.00019997,2]
[359997807,1746472241085,-450.0,0.00019997,2]